bitfinex/quotes_SOLUSD_20251115
["timestamp","ask_amount","ask_price","bid_price","bid_amount"]
[1763169307139,100.91497,141.24,141.17,23.3512]
[1763169307530,100.91497,141.24,141.18,0.7]
[1763169308153,97.957485,141.24,141.18,0.84216157]
[1763169308941,98.657485,141.24,141.18,0.84216157]
[1763169309339,0.7,141.23,141.18,0.84216157]
[1763169309753,0.7,141.23,141.19,0.7]
[1763169309955,97.957485,141.24,141.19,0.7]
[1763169310171,0.7,141.23,141.19,0.7]
[1763169310562,0.7,141.23,141.18,0.14216157]
[1763169310871,0.7,141.23,141.18,0.81216157]
[1763169311246,3.657485,141.23,141.17,22.6512]
[1763169311541,2.957485,141.22,141.17,22.6512]
[1763169311850,3.617485,141.22,141.17,22.6512]
[1763169312067,2.957485,141.22,141.17,23.3212]
[1763169312765,2.957485,141.23,141.18,0.67]
[1763169312957,2.957485,141.23,141.17,22.6512]
[1763169313159,2.957485,141.23,141.17,23.3212]
[1763169313363,2.957485,141.23,141.17,22.6512]
[1763169313869,2.957485,141.23,141.17,23.3212]
[1763169314067,3.077485,141.23,141.17,23.3212]
[1763169314253,94.652455,141.24,141.18,0.67]
[1763169315346,0.12,141.23,141.17,23.3212]
[1763169315546,3.077485,141.23,141.17,23.3212]
[1763169316075,3.077485,141.23,141.17,22.6512]
[1763169316254,94.652455,141.24,141.18,0.67]
[1763169316567,94.652455,141.24,141.17,22.6512]
[1763169316568,2.957485,141.22,141.17,22.6512]
[1763169316758,2.957485,141.22,141.17,23.3212]
[1763169316957,3.077485,141.22,141.17,23.3212]
[1763169317475,3.077485,141.22,141.18,0.67]
[1763169317678,2.957485,141.22,141.18,0.67]
[1763169317844,3.077485,141.22,141.17,22.6512]
[1763169318044,3.077485,141.22,141.17,23.3212]
[1763169319166,2.957485,141.23,141.18,0.67]
[1763169319350,3.077485,141.23,141.18,0.67]
[1763169319545,3.077485,141.22,141.17,22.6512]
[1763169319749,3.077485,141.22,141.17,23.3212]
[1763169320163,3.077485,141.23,141.18,0.67]
[1763169320774,91.57497,141.24,141.18,0.67]
[1763169320994,91.57497,141.24,141.19,9.78882769]
[1763169321476,91.57497,141.24,141.2,0.67]
[1763169322655,0.12,141.23,141.18,32.44002769]
[1763169322959,3.077485,141.23,141.18,33.11002769]
[1763169323271,94.532455,141.24,141.19,0.67]
[1763169323585,94.652455,141.24,141.19,0.67]
[1763169323883,129.52053716,141.28,141.21,22.6512]
[1763169323884,3.077485,141.27,141.21,22.6512]
[1763169324074,3.077485,141.27,141.22,0.67]
[1763169325373,91.57497,141.28,141.22,0.67]
[1763169325586,94.532455,141.28,141.22,0.67]
[1763169326654,91.57497,141.28,141.22,0.67]
[1763169326880,94.532455,141.28,141.22,0.67]
[1763169327557,2.957485,141.27,141.22,0.67]
[1763169327758,91.57497,141.28,141.22,0.67]
[1763169328065,2.957485,141.31,141.25,9.78882769]
[1763169328267,3.157485,141.32,141.26,0.67]
[1763169328569,0.2,141.32,141.26,0.67]
[1763169328771,0.2,141.32,141.29,9.78882769]
[1763169328977,0.2,141.32,141.3,0.67]
[1763169329972,0.2,141.39,141.32,0.14216157]
[1763169330285,2.957485,141.35,141.31,22.6512]
[1763169330680,2.957485,141.35,141.31,23.3212]
[1763169330976,2.957485,141.36,141.31,23.3212]
[1763169331364,0.32,141.35,141.31,0.67]
[1763169331556,2.957485,141.36,141.31,23.3212]
[1763169331557,3.277485,141.36,141.31,23.3212]
[1763169332169,2.957485,141.37,141.32,0.67]
[1763169332375,3.277485,141.37,141.32,0.67]
[1763169332582,3.277485,141.36,141.32,0.67]
[1763169332788,3.277485,141.36,141.31,22.6512]
[1763169332789,0.32,141.36,141.31,22.6512]
[1763169332995,3.277485,141.36,141.31,23.3212]
[1763169333700,3.277485,141.36,141.28,0.67]
[1763169333701,2.957485,141.34,141.28,0.67]
[1763169333990,0.32,141.35,141.28,0.67]
[1763169334162,50.0,141.36,141.28,0.67]
[1763169334163,2.957485,141.33,141.28,23.3212]
[1763169334578,3.277485,141.33,141.28,23.3212]
[1763169334774,2.957485,141.34,141.29,0.67]
[1763169334975,0.32,141.33,141.28,22.6512]
[1763169335193,3.277485,141.33,141.27,0.67]
[1763169335785,0.32,141.33,141.27,0.67]
[1763169336008,3.277485,141.32,141.26,23.3212]
[1763169336370,50.0,141.34,141.26,23.3212]
[1763169336572,3.277485,141.32,141.26,23.3212]
[1763169338294,0.32,141.31,141.26,23.3212]
[1763169338678,3.277485,141.34,141.27,0.67]
[1763169338888,3.277485,141.34,141.28,22.6512]
[1763169338889,2.957485,141.34,141.28,22.6512]
[1763169339096,2.957485,141.36,141.29,9.78882769]
[1763169339293,3.277485,141.37,141.3,0.67]
[1763169339480,52.957485,141.38,141.3,0.67]
[1763169339798,3.277485,141.38,141.32,22.6512]
[1763169340173,3.277485,141.38,141.33,0.67]
[1763169340590,2.957485,141.38,141.33,0.67]
[1763169340785,0.2,141.39,141.33,0.67]
[1763169341788,0.2,141.39,141.34,9.78882769]
[1763169341983,0.2,141.39,141.35,0.67]
[1763169342311,0.2,141.39,141.36,9.78882769]
[1763169342778,0.2,141.39,141.37,0.65]
[1763169343694,0.2,141.39,141.38,22.6512]
[1763169344097,0.52,141.39,141.38,22.6512]
[1763169344300,145.052455,141.39,141.32,9.78882769]
[1763169344603,2.957485,141.37,141.32,22.6512]
[1763169344800,2.957485,141.36,141.31,0.65]
[1763169345179,0.32,141.35,141.32,22.6512]
[1763169345406,2.957485,141.34,141.29,0.65]
[1763169345888,3.277485,141.34,141.29,23.3012]
[1763169346081,0.32,141.34,141.29,23.3012]
[1763169346398,2.957485,141.35,141.29,22.6512]
[1763169346593,0.32,141.35,141.29,22.6512]
[1763169346781,3.277485,141.35,141.29,22.6512]
[1763169346983,2.957485,141.34,141.29,22.6512]
[1763169347178,3.277485,141.35,141.3,0.65]
[1763169347404,0.32,141.35,141.3,0.65]
[1763169347720,2.957485,141.35,141.3,0.65]
[1763169347891,3.277485,141.37,141.3,0.65]
[1763169348307,3.277485,141.37,141.31,22.6512]
[1763169348512,50.52,141.39,141.31,22.6512]
[1763169348710,3.277485,141.38,141.31,23.3012]
[1763169348993,8.14884462,141.38,141.32,0.65]
[1763169349194,7.82884462,141.36,141.31,22.6512]
[1763169349417,7.82884462,141.36,141.31,23.3012]
[1763169349614,8.14884462,141.36,141.31,23.3012]
[1763169349920,0.32,141.35,141.29,0.65]
[1763169350103,7.82884462,141.36,141.29,0.65]
[1763169350309,8.14884462,141.36,141.29,0.65]
[1763169351419,0.32,141.36,141.29,0.65]
[1763169352519,99.40381462,141.37,141.29,0.65]
[1763169352722,99.72381462,141.37,141.29,0.65]
[1763169353100,7.82884462,141.36,141.29,0.65]
[1763169353796,8.14884462,141.35,141.29,0.65]
[1763169354009,7.82884462,141.34,141.29,0.65]
[1763169354222,8.14884462,141.34,141.29,0.65]
[1763169354423,0.32,141.33,141.27,22.6512]
[1763169354718,0.32,141.33,141.27,0.65]
[1763169354719,7.82884462,141.32,141.27,0.65]
[1763169354926,7.82884462,141.32,141.27,23.3012]
[1763169355115,8.14884462,141.33,141.27,0.65]
[1763169355512,8.14884462,141.33,141.27,23.3012]
[1763169355726,7.82884462,141.31,141.24,0.65]
[1763169355896,7.82884462,141.31,141.24,10.58098926]
[1763169356102,7.82884462,141.31,141.25,9.78882769]
[1763169356103,8.14884462,141.31,141.25,9.78882769]
[1763169356427,8.14884462,141.31,141.25,10.43882769]
[1763169357428,0.32,141.33,141.26,0.65]
[1763169357627,91.57497,141.34,141.27,9.78882769]
[1763169357796,99.72381462,141.34,141.27,9.78882769]
[1763169358000,99.72381462,141.34,141.28,0.65]
[1763169358422,91.57497,141.34,141.28,0.65]
[1763169358615,8.14884462,141.33,141.26,10.43882769]
[1763169358828,7.82884462,141.31,141.26,0.65]
[1763169359020,7.82884462,141.31,141.21,9.93098926]
[1763169359233,0.32,141.3,141.24,0.65]
[1763169359806,57.82884462,141.29,141.21,0.65]
[1763169360111,7.82884462,141.28,141.22,0.65]
[1763169360432,7.82884462,141.25,141.19,0.65]
[1763169360929,4.50509059,141.24,141.19,23.3012]
[1763169361101,191.57497,141.27,141.19,23.3012]
[1763169361302,191.57497,141.27,141.2,0.65]
[1763169361303,191.89497,141.27,141.2,0.65]
[1763169361504,4.82509059,141.26,141.2,0.65]
[1763169361937,4.50509059,141.25,141.2,0.65]
[1763169363104,4.82509059,141.26,141.2,0.65]
[1763169363703,191.57497,141.27,141.2,0.65]
[1763169363704,4.50509059,141.25,141.2,0.65]
[1763169364106,4.82509059,141.25,141.2,0.65]
[1763169364310,4.82509059,141.25,141.16,9.78882769]
[1763169364311,4.82509059,141.24,141.18,0.65]
[1763169364635,0.32,141.26,141.18,0.65]
[1763169364832,146.40006059,141.27,141.19,22.6512]
[1763169365136,4.50509059,141.24,141.19,22.6512]
[1763169365335,4.50509059,141.24,141.18,0.65]
[1763169365644,4.50509059,141.24,141.15,0.14216157]
[1763169365645,4.50509059,141.21,141.15,0.65]
[1763169365812,72.9712,141.23,141.15,0.65]
[1763169366009,27.15629059,141.23,141.16,9.78882769]
[1763169366217,4.50509059,141.25,141.18,9.78882769]
[1763169366423,4.50509059,141.25,141.19,0.65]
[1763169366826,4.50509059,141.24,141.19,0.65]
[1763169367023,4.82509059,141.24,141.19,0.65]
[1763169367429,0.32,141.23,141.17,22.6512]
[1763169367734,0.32,141.23,141.17,23.3012]
[1763169367940,0.32,141.23,141.14,9.78882769]
[1763169367941,4.50509059,141.21,141.14,0.65]
[1763169368113,4.50509059,141.2,141.14,0.65]
[1763169368317,4.50509059,141.2,141.14,23.3012]
[1763169368644,4.82509059,141.2,141.14,23.3012]
[1763169368937,4.50509059,141.19,141.14,23.3012]
[1763169369633,54.82509059,141.2,141.15,0.65]
[1763169369860,0.32,141.19,141.12,0.1]
[1763169370016,50.0,141.18,141.12,0.1]
[1763169370217,4.82509059,141.17,141.12,0.8]
[1763169370413,22.6512,141.17,141.12,0.8]
[1763169370614,4.82509059,141.19,141.12,0.8]
[1763169370914,4.82509059,141.19,141.12,0.1]
[1763169370915,1.89410486,141.17,141.12,0.1]
[1763169371410,0.32,141.16,141.12,0.1]
[1763169371616,2.21410486,141.16,141.12,0.1]
[1763169371819,100.0,141.18,141.12,0.1]
[1763169372140,2.21410486,141.17,141.12,0.1]
[1763169372635,2.21410486,141.17,141.12,0.78]
[1763169372839,1.89410486,141.17,141.12,0.78]
[1763169373143,0.32,141.16,141.12,0.1]
[1763169373638,100.32,141.18,141.12,0.78]
[1763169373939,2.21410486,141.16,141.12,0.1]
[1763169374715,2.21410486,141.15,141.12,0.1]
[1763169374937,1.89410486,141.15,141.12,0.1]
[1763169375141,2.21410486,141.15,141.12,0.1]
[1763169375318,0.32,141.14,141.12,0.1]
[1763169375733,1.89410486,141.15,141.12,0.1]
[1763169375923,1.89410486,141.16,141.12,0.78]
[1763169376620,2.21410486,141.16,141.12,0.1]
[1763169377552,1.89410486,141.15,141.12,0.1]
[1763169377722,2.21410486,141.15,141.12,0.1]
[1763169378043,1.89410486,141.15,141.12,0.1]
[1763169378241,2.21410486,141.15,141.12,0.1]
[1763169378943,91.57497,141.15,141.13,0.68]
[1763169379338,1.89410486,141.18,141.13,0.68]
[1763169380156,1.89410486,141.17,141.13,0.68]
[1763169380327,91.57497,141.19,141.13,0.68]
[1763169380520,1.89410486,141.18,141.13,0.68]
[1763169380842,93.46907486,141.19,141.13,0.68]
[1763169381838,1.89410486,141.18,141.13,0.68]
[1763169382455,91.57497,141.19,141.13,23.3312]
[1763169382958,91.57497,141.19,141.14,0.68]
[1763169383645,50.0,141.23,141.15,9.78882769]
[1763169383646,91.57497,141.23,141.15,9.78882769]
[1763169383848,93.78907486,141.23,141.16,0.68]
[1763169384550,93.46907486,141.23,141.16,0.68]
[1763169384753,91.57497,141.23,141.16,0.68]
[1763169386272,96.08037043,141.23,141.16,0.68]
[1763169386458,91.57497,141.23,141.16,0.68]
[1763169386771,96.08037043,141.23,141.16,0.68]
[1763169387572,91.57497,141.23,141.17,9.78882769]
[1763169387745,4.50540043,141.25,141.18,0.68]
[1763169388354,91.57497,141.27,141.19,9.78882769]
[1763169388555,265.1,141.3,141.22,22.6512]
[1763169388556,4.82540043,141.3,141.22,22.6512]
[1763169388769,0.32,141.3,141.22,22.6512]
[1763169388953,0.32,141.3,141.23,0.68]
[1763169389154,21.52540043,141.31,141.23,0.68]
[1763169389542,21.84540043,141.31,141.23,0.68]
[1763169390275,4.50540043,141.3,141.23,0.68]
[1763169390482,4.82540043,141.3,141.23,0.68]
[1763169391546,4.50540043,141.29,141.23,0.68]
[1763169392609,0.32,141.28,141.22,22.6512]
[1763169392767,4.50540043,141.26,141.21,0.68]
[1763169393083,50.0,141.27,141.18,0.82216157]
[1763169393278,4.50540043,141.24,141.18,0.68]
[1763169393870,0.32,141.25,141.18,0.68]
[1763169394310,4.82540043,141.25,141.18,0.68]
[1763169394493,91.57497,141.26,141.18,0.82216157]
[1763169394704,96.08037043,141.26,141.18,0.82216157]
[1763169394999,91.57497,141.26,141.18,0.82216157]
[1763169395202,96.40037043,141.26,141.18,0.82216157]
[1763169395711,4.50540043,141.25,141.18,0.82216157]
[1763169397286,96.08037043,141.26,141.2,22.6512]
[1763169397691,1.99999999,141.33,141.21,10.61098926]
[1763169397692,91.57497,141.3,141.21,10.61098926]
[1763169397895,91.57497,141.3,141.11,61.5]
[1763169397896,54.50540043,141.27,141.11,61.5]
[1763169398117,0.32,141.26,141.2,22.6512]
[1763169398282,0.32,141.26,141.2,23.3312]
[1763169398609,4.50540043,141.25,141.2,23.3312]
[1763169398780,96.08037043,141.29,141.21,10.61098926]
[1763169398986,96.40037043,141.29,141.21,10.61098926]
[1763169399190,4.50540043,141.28,141.22,0.68]
[1763169399708,91.89497,141.29,141.22,0.68]
[1763169399914,96.40037043,141.29,141.22,0.68]
[1763169401117,4.82540043,141.28,141.22,0.68]
[1763169402919,96.08037043,141.29,141.22,0.68]
[1763169405414,91.57497,141.29,141.24,22.6512]
[1763169405828,91.57497,141.29,141.25,0.66]
[1763169407202,24.54168448,141.31,141.25,0.66]
[1763169407203,22.6512,141.31,141.25,0.66]
[1763169408608,1.89048448,141.33,141.25,0.80216157]
[1763169409011,91.57497,141.35,141.27,22.79336157]
[1763169409211,91.57497,141.35,141.26,9.78882769]
[1763169409212,1.89048448,141.35,141.29,22.6512]
[1763169409443,0.32,141.34,141.29,22.6512]
[1763169409744,1.89048448,141.35,141.29,23.3112]
[1763169409745,2.21048448,141.35,141.29,23.3112]
[1763169410906,0.32,141.35,141.29,23.3112]
[1763169411105,2.21048448,141.35,141.29,23.3112]
[1763169411431,2.21048448,141.35,141.3,0.66]
[1763169412326,72.6512,141.38,141.3,0.66]
[1763169412535,91.77497,141.39,141.3,0.80216157]
[1763169412743,93.98545448,141.39,141.3,0.80216157]
[1763169413512,2.21048448,141.38,141.3,0.80216157]
[1763169414624,0.32,141.38,141.31,9.78882769]
[1763169415029,0.32,141.38,141.32,0.66]
[1763169415405,0.2,141.39,141.33,9.78882769]
[1763169415833,0.2,141.39,141.34,0.66]
[1763169416037,0.2,141.39,141.36,22.6512]
[1763169416412,0.2,141.39,141.37,0.66]
[1763169417436,0.2,141.39,141.38,22.6512]
[1763169417923,0.2,141.39,141.38,23.3112]
[1763169422139,0.2,141.39,141.36,23.45336157]
[1763169422309,0.2,141.39,141.37,0.66]
[1763169423518,0.2,141.39,141.34,0.14216157]
[1763169423718,0.2,141.39,141.29,9.93098926]
[1763169423719,0.52,141.39,141.29,9.93098926]
[1763169423922,0.52,141.39,141.35,22.6512]
[1763169424136,0.52,141.39,141.35,23.3112]
[1763169424352,0.2,141.39,141.35,23.3112]
[1763169424724,0.2,141.39,141.35,22.6512]
[1763169424925,0.2,141.39,141.35,23.3112]
[1763169425938,0.2,141.39,141.37,9.78882769]
[1763169426345,0.2,141.39,141.38,0.66]
[1763169428545,0.2,141.42,141.39,9.78882769]
[1763169428746,0.2,141.42,141.41,32.58218926]
[1763169429248,0.2,141.42,141.41,0.66]
[1763169429551,0.2,141.42,141.39,22.6512]
[1763169429752,0.2,141.42,141.39,23.3112]
[1763169429922,0.2,141.42,141.39,22.6512]
[1763169430125,0.2,141.42,141.41,32.58218926]
[1763169430536,0.2,141.42,141.41,33.24218926]
[1763169431631,0.2,141.42,141.39,0.66]
[1763169431827,0.2,141.42,141.4,9.78882769]
[1763169432649,0.72,141.42,141.39,22.6512]
[1763169432831,0.2,141.42,141.4,9.78882769]
[1763169434335,0.72,141.42,141.38,0.14216157]
[1763169434538,0.72,141.42,141.38,22.6512]
[1763169434925,0.52,141.41,141.38,22.6512]
[1763169435934,0.72,141.42,141.38,22.6512]
[1763169436250,0.52,141.41,141.38,22.6512]
[1763169438067,0.52,141.41,141.36,0.14216157]
[1763169438367,0.52,141.41,141.36,22.6512]
[1763169439358,8.34457329,141.41,141.31,0.69]
[1763169439559,8.34457329,141.41,141.33,0.14216157]
[1763169439767,0.52,141.4,141.34,9.78882769]
[1763169441252,0.52,141.4,141.35,0.69]
[1763169441440,0.52,141.4,141.34,9.78882769]
[1763169441634,0.52,141.4,141.34,10.47882769]
[1763169442967,0.52,141.4,141.34,9.78882769]
[1763169443274,8.34457329,141.4,141.34,9.78882769]
[1763169443451,7.82457329,141.39,141.32,0.69]
[1763169443639,8.34457329,141.39,141.32,23.3412]
[1763169443841,8.34457329,141.38,141.29,10.62098926]
[1763169444066,7.82457329,141.37,141.29,10.62098926]
[1763169444364,8.34457329,141.37,141.28,9.93098926]
[1763169444568,0.52,141.36,141.29,0.69]
[1763169444864,0.52,141.36,141.28,9.78882769]
[1763169444865,7.82457329,141.35,141.28,9.78882769]
[1763169445276,0.52,141.37,141.3,9.78882769]
[1763169445469,0.52,141.36,141.3,10.47882769]
[1763169445971,22.6512,141.39,141.31,0.69]
[1763169446147,0.52,141.36,141.3,9.78882769]
[1763169446340,0.52,141.36,141.3,10.47882769]
[1763169448353,7.82457329,141.38,141.3,10.47882769]
[1763169448354,0.52,141.37,141.31,0.69]
[1763169450353,0.52,141.38,141.31,0.69]
[1763169451646,91.57497,141.37,141.32,9.78882769]
[1763169452088,91.57497,141.37,141.34,9.78882769]
[1763169452288,91.57497,141.37,141.32,0.14216157]
[1763169452577,91.57497,141.37,141.33,0.69]
[1763169453270,92.09497,141.37,141.33,0.69]
[1763169453974,0.52,141.36,141.32,9.78882769]
[1763169454154,0.52,141.36,141.3,0.14216157]
[1763169454574,0.52,141.36,141.3,22.79336157]
[1763169454774,0.52,141.36,141.3,22.6512]
[1763169455151,0.52,141.36,141.31,9.78882769]
[1763169455362,0.52,141.36,141.31,10.47882769]
[1763169455576,0.52,141.36,141.32,0.69]
[1763169457881,0.52,141.36,141.31,10.47882769]
[1763169458753,0.52,141.36,141.31,9.78882769]
[1763169458980,91.57497,141.37,141.32,0.69]
[1763169459487,91.57497,141.37,141.33,9.78882769]
[1763169459858,91.57497,141.37,141.34,0.69]
[1763169460379,92.09497,141.41,141.35,9.78882769]
[1763169460603,91.57497,141.4,141.35,9.78882769]
[1763169460789,91.57497,141.4,141.34,0.69]
[1763169460790,92.09497,141.4,141.34,0.69]
[1763169461984,0.52,141.39,141.34,0.69]
[1763169463583,91.57497,141.4,141.35,9.78882769]
[1763169464011,0.52,141.39,141.35,10.44882769]
[1763169464512,91.57497,141.4,141.35,10.44882769]
[1763169464696,92.09497,141.4,141.35,10.44882769]
[1763169465089,92.09497,141.4,141.36,0.66]
[1763169466007,91.57497,141.4,141.32,9.93098926]
[1763169466199,0.52,141.39,141.35,9.78882769]
[1763169466605,92.09497,141.4,141.35,9.78882769]
[1763169466793,92.09497,141.4,141.35,0.66]
[1763169467111,92.09497,141.4,141.36,0.66]
[1763169467906,0.52,141.39,141.33,0.66]
[1763169469402,91.57497,141.4,141.34,9.78882769]
[1763169469805,91.57497,141.4,141.35,0.66]
[1763169469992,92.09497,141.4,141.35,0.66]
[1763169471011,91.57497,141.4,141.35,0.66]
[1763169471511,92.09497,141.4,141.35,0.66]
[1763169471715,91.57497,141.4,141.36,9.78882769]
[1763169472099,91.57497,141.4,141.37,0.66]
[1763169472897,92.09497,141.4,141.36,9.78882769]
[1763169473104,91.57497,141.4,141.36,9.78882769]
[1763169473303,91.57497,141.4,141.37,0.66]
[1763169480228,0.52,141.39,141.34,0.66]
[1763169480396,3.46941785,141.39,141.29,0.66]
[1763169480599,3.46941785,141.39,141.31,0.14216157]
[1763169480900,3.46941785,141.39,141.29,0.66]
[1763169480901,25.60061785,141.37,141.29,0.66]
[1763169481212,22.6512,141.36,141.3,9.78882769]
[1763169481409,23.1712,141.36,141.3,9.78882769]
[1763169481603,0.52,141.35,141.3,0.66]
[1763169482034,22.6512,141.36,141.3,0.66]
[1763169482195,0.52,141.38,141.31,9.78882769]
[1763169482399,22.6512,141.37,141.31,9.78882769]
[1763169482626,22.6512,141.37,141.33,9.78882769]
[1763169483006,22.6512,141.37,141.33,10.44882769]
[1763169483301,91.57497,141.4,141.34,0.66]
[1763169483500,0.52,141.41,141.35,9.78882769]
[1763169483714,0.52,141.41,141.35,10.44882769]
[1763169483916,22.6512,141.4,141.35,10.44882769]
[1763169484429,0.52,141.4,141.36,0.66]
[1763169484821,0.52,141.4,141.35,0.66]
[1763169486428,23.1712,141.41,141.35,10.44882769]
[1763169486809,23.1712,141.41,141.36,0.66]
[1763169487633,92.09497,141.4,141.36,0.66]
[1763169488131,91.57497,141.4,141.36,0.66]
[1763169488715,92.09497,141.4,141.36,10.44882769]
[1763169489113,91.57497,141.4,141.33,9.93098926]
[1763169489324,91.57497,141.4,141.37,0.66]
[1763169489531,91.57497,141.4,141.35,9.78882769]
[1763169489933,91.57497,141.4,141.36,0.66]
[1763169490506,91.57497,141.4,141.37,9.78882769]
[1763169490707,91.57497,141.4,141.38,0.69]
[1763169490931,91.57497,141.4,141.37,10.47882769]
[1763169491326,91.57497,141.4,141.38,0.69]
[1763169491503,0.2,141.42,141.39,9.78882769]
[1763169492020,0.2,141.42,141.4,0.69]
[1763169493507,0.2,141.42,141.41,9.93098926]
[1763169493706,0.2,141.43,141.42,0.14216157]
[1763169493920,0.2,141.43,141.42,23.48336157]
[1763169494432,0.2,141.46,141.42,33.27218926]
[1763169494630,0.2,141.46,141.44,9.78882769]
[1763169494950,0.2,141.46,141.45,0.14216157]
[1763169495258,0.2,141.46,141.45,33.27218926]
[1763169495532,0.2,141.47,141.45,33.27218926]
[1763169495711,0.2,141.5,141.46,10.62098926]
[1763169495906,0.2,141.55,141.49,0.14216157]
[1763169496118,0.2,141.55,141.52,0.14216157]
[1763169496530,0.2,141.55,141.52,0.69]
[1763169500020,0.2,141.55,141.53,22.6512]
[1763169500220,0.2,141.55,141.54,9.93098926]
[1763169500455,0.2,141.55,141.54,10.62098926]
[1763169501250,100.0,141.69,141.58,9.93098926]
[1763169501545,0.2,141.7,141.62,9.93098926]
[1763169501727,0.92,141.7,141.65,0.14216157]
[1763169502064,0.2,141.7,141.65,0.14216157]
[1763169502264,0.2,141.7,141.67,9.78882769]
[1763169502428,0.2,141.7,141.66,0.69]
[1763169502429,0.92,141.7,141.66,0.69]
[1763169502755,0.92,141.7,141.65,0.14216157]
[1763169502922,0.72,141.69,141.65,0.14216157]
[1763169503126,0.72,141.69,141.63,9.78882769]
[1763169503323,5.20149012,141.69,141.63,9.78882769]
[1763169503565,5.20149012,141.69,141.61,9.78882769]
[1763169503566,27.13269012,141.67,141.61,9.78882769]
[1763169503855,0.72,141.66,141.61,9.78882769]
[1763169504156,0.72,141.66,141.61,0.69]
[1763169505139,22.6512,141.67,141.61,0.69]
[1763169505341,5.40149012,141.7,141.61,0.69]
[1763169505643,0.72,141.69,141.64,9.93098926]
[1763169505830,0.72,141.69,141.62,9.78882769]
[1763169506033,27.13269012,141.67,141.61,0.69]
[1763169506229,23.3712,141.69,141.62,9.78882769]
[1763169506731,22.6512,141.69,141.63,0.69]
[1763169506942,23.3712,141.69,141.64,9.78882769]
[1763169507136,22.6512,141.69,141.64,9.78882769]
[1763169507354,22.6512,141.69,141.6,9.93098926]
[1763169507659,0.2,141.7,141.58,7.06310947]
[1763169507660,0.2,141.7,141.65,0.69]
[1763169508044,0.92,141.7,141.65,0.69]
[1763169508246,0.2,141.7,141.65,0.69]
[1763169508445,0.2,141.7,141.67,0.14216157]
[1763169509081,0.2,141.7,141.67,0.69]
[1763169509365,0.92,141.7,141.65,0.14216157]
[1763169509866,0.72,141.69,141.62,9.93098926]
[1763169510034,0.72,141.69,141.64,0.69]
[1763169511555,0.72,141.69,141.62,10.62098926]
[1763169511756,0.72,141.69,141.64,9.78882769]
[1763169512060,0.72,141.69,141.64,10.47882769]
[1763169513063,0.2,141.7,141.66,9.78882769]
[1763169513275,0.92,141.7,141.66,9.78882769]
[1763169513960,0.2,141.7,141.63,0.14216157]
[1763169514140,0.72,141.69,141.63,0.14216157]
[1763169514347,0.72,141.69,141.63,0.83216157]
[1763169515958,0.72,141.69,141.64,9.78882769]
[1763169516770,0.72,141.69,141.64,10.47882769]
[1763169516951,0.2,141.7,141.61,22.6512]
[1763169516952,0.2,141.7,141.66,9.78882769]
[1763169517151,0.92,141.7,141.66,9.78882769]
[1763169517664,0.72,141.69,141.63,0.14216157]
[1763169518353,0.72,141.69,141.64,9.78882769]
[1763169519063,0.72,141.69,141.62,9.78882769]
[1763169519569,4.48149012,141.67,141.59,10.47882769]
[1763169519965,0.72,141.66,141.59,10.47882769]
[1763169520163,50.0,141.69,141.62,0.14216157]
[1763169520164,0.72,141.69,141.62,0.14216157]
[1763169520651,0.72,141.69,141.64,9.78882769]